Workbook

Sheet Notes
A1: Supplemental Assignment Notes
A2: IF Function | C2: https://www.youtube.com/watch?v=KkTaQ5OjAGc
C3: Use this function when the result for a cell is one of two
C4: possible values:
C5: =IF(condition,cell value if condition is true,cell value if condition is false)
C6: Examples:
C7: 1 | D7: =IF(C7<>1,999,"Error!") -> Error! | E7: =getformula(D7) -> <-- =IF(C7<>1,999,"Error!")
C8: Text | D8: =IF(C8<>1,999,"OK") -> 999 | E8: =getformula(D8) -> <-- =IF(C8<>1,999,"OK")
C9: 2.44 | D9: =IF(C9^2/(1+C9/100)>=1,1+C9/100,999) -> 1.0244 | E9: =getformula(D9) -> <-- =IF(C9^2/(1+C9/100)>=1,1+C9/100,999)
C10: 2.44 | D10: =IF(C10^2/(1+C10/100)>=1,ROUND(1+C10/100,2),999) -> 1.02 | E10: =getformula(D10) -> <-- =IF(C10^2/(1+C10/100)>=1,ROUND(1+C10/100,2),999)
C11: Note that each of the 3 arguments in the IF function may be
C12: elaborate "formulas" with other functions and cell references.
C13: It is not unusual to see an IF function as an argument to an
C14: IF function.
B15: Order (low to high) in IF test:
B16: empty cell -->
B17: 0 --> | C17: 0 | D17: =C17=C16 -> TRUE | E17: =getformula(D17) -> <-- =C17=C16 | F17: <-- Empty cell and zero considered Equal!
B18: 1 --> | C18: 1 | D18: =C18>C17 -> TRUE | E18: =getformula(D18) -> <-- =C18>C17
B19: 2 --> | C19: 2 | D19: =C19>C18 -> TRUE | E19: <-- =C19>C18 | G19: BUT, these 2 cells are equal!:
B20: 3 --> | C20: 3 | D20: TRUE | E20: <-- =C20>C19 | G20: 2 double " --> | H20: ="" ->  | I20: =getformula(H20) -> <-- =""
B21: 99 --> | C21: 99 | D21: TRUE | E21: <-- =C21>C20 | G21: empty cell --> | I21: =getformula(H21) -> <--
B22: 2 double " --> | C22: ="" ->  | D22: TRUE | E22: <-- =C22>C21 | H22: =H20=H21 -> TRUE | I22: =getformula(H22) -> <-- =H20=H21
B23: space --> | D23: TRUE | E23: <-- =C23>C22
B24: ! --> | C24: ! | D24: TRUE | E24: <-- =C24>C23
B25: # --> | C25: # | D25: TRUE | E25: <-- =C25>C24
B26: @ --> | C26: @ | D26: TRUE | E26: <-- =C26>C25
B27: a --> | C27: a | D27: TRUE | E27: <-- =C27>C26
B28: z --> | C28: z | D28: TRUE | E28: <-- =C28>C27
A29: Don’t use a math operator (+-*/^) on a text cell! | G29: But this works:
B30: Text | C30: 5 | D30: =B30*C30 ->  | E30: =getformula(D30) -> <-- =B30*C30 | G30: Number as TEXT
B31: Over | C31: 4 | D31: =B31+1 ->  | E31: =getformula(D31) -> <-- =B31+1 | G31: ="222" -> 222 | H31: 4 | I31: =G31+H31 -> 226 | J31: =getformula(I31) -> <-- =G31+H31
B32: Under | C32: 3 | D32: =B32/C32 ->  | E32: <-- =B32/C32 | G32: ="333" -> 333 | H32: 3 | I32: =G32/H32 -> 111 | J32: <-- =G32/H32
A33: Use apersand (&) to join (concatenate) pieces of text!
B34: day | C34: 2 | D34: =B34&C34 -> day2 | E34: =getformula(D34) -> <-- =B34&C34
B35: Jim | C35: Bob | D35: =B35&C35 -> JimBob | E35: =getformula(D35) -> <-- =B35&C35
B36: Jim | C36: Bob | D36: =B36&" "&C36 -> Jim Bob | E36: =getformula(D36) -> <-- =B36&" "&C36
A37: Rounding Functions | G37: FIXED Function: Converts value to text
B38: 123.456 | C38: =ROUND(B38,0) -> 123 | D38: =getformula(C38) -> <-- =ROUND(B38,0) | G38: =FIXED(C38,1) -> 123.0 | H38: =getformula(G38) -> <-- =FIXED(C38,1)
B39: 123.456 | C39: =ROUND(B39,1) -> 123.5 | D39: =getformula(C39) -> <-- =ROUND(B39,1) | G39: =FIXED(C39*100,0) -> 12,350 | H39: <-- =FIXED(C39*100,0)
B40: 123.456 | C40: =ROUND(B40,-2) -> 100 | D40: <-- =ROUND(B40,-2) | G40: ="Number = "&FIXED(C40*100,1) -> Number = 10,000.0 | H40: <-- ="Number = "&FIXED(C40*100,1)
B41: 123.456 | C41: =ROUNDUP(B41,1) -> 123.5 | D41: <-- =ROUNDUP(B41,1) | G41: ="X = "&FIXED(C41*100,2)&"%" -> X = 12,350.00% | H41: <-- ="X = "&FIXED(C41*100,2)&"%"
B42: 123.456 | C42: =ROUNDUP(B42,2) -> 123.46 | D42: <-- =ROUNDUP(B42,2) | G42: ="Max = "&FIXED(SUM(C38:C43)-33,2)&" Units" -> Max = 683.91 Units | H42: <-- ="Max = "&FIXED(SUM(C38:C43)-33,2)&" Units"
B43: 123.456 | C43: =ROUNDDOWN(B43,2) -> 123.45 | D43: <-- =ROUNDDOWN(B43,2)
B44: 123.456 | C44: =ROUNDDOWN(B44,-2) -> 100 | D44: <-- =ROUNDDOWN(B44,-2)
B45: =SUM(B38:B44) -> 864.192 | C45: =SUM(C38:C44) -> 816.91 | D45: ="<--Totals "&IF(C45<>B45,"Differ!","Same!") -> <--Totals Differ! | F45: =getformula(D45) -> <-- ="<--Totals "&IF(C45<>B45,"Differ!","Same!")
A47: AND/OR Functions
B48: 0 | C48: AND--> | D48: =AND(B48>=0,B49>=0,B50>=0,B51>=0) -> TRUE | E48: =getformula(D48) -> <-- =AND(B48>=0,B49>=0,B50>=0,B51>=0)
B49: 1 | D49: ALL 4 logical tests must be True to get a TRUE answer!
B50: 2 | C50: OR--> | D50: =OR(B48>=0,B49>=0,B50>=0,B51>=0) -> TRUE | E50: =getformula(D50) -> <-- =OR(B48>=0,B49>=0,B50>=0,B51>=0)
B51: 3 | D51: ANY of the 4 logical tests may be True for a TRUE answer!
A52: Data Validation
B53: Use Data/Data Validation/Data Validation to constrain input cell values | J53: Data Validation List:
C54: Settings: Specify what may be entered into this cell | J54: Robert
C55: Input Message: Show this message when cell is selected | J55: Elaine
C56: Error Alert: Show this message when value entered is incorrect | J56: Susan
B57: ="See Cell "&CELL("address",I53)&" Above" -> See Cell $I$53 Above | E57: =getformula(B57) -> <-- ="See Cell "&CELL("address",I53)&" Above" | J57: Thomas
A58: Conditional Formatting: Formula Rule | J58: Amelia
B59: Use this command (Home/Conditional Formatting) to set an
B60: alternate format based on conditions you specify.
B61: 1 | C61: Start by selecting the cell or cells for which will display one
C62: of two formats based on a formula that is true or false.
B63: 2 | C63: Select: Home/Conditional Formatting/New Rule/Use a formula…
B64: 3 | C64: Enter the appropriate formula as a condition
B65: 4 | C65: Specify the new format to be applied if the formula result is true
B66: Examples:
B67: 1 | C67: 12345 | D67: ="<-- If "&CELL("address",B67)&" is negative apply a red fill." -> <-- If $B$67 is negative apply a red fill.
B68: -1 | C68: 12345 | D68: ="<-- If "&CELL("address",B68)&" is negative apply a red fill." -> <-- If $B$68 is negative apply a red fill.
B69: Be sure to use "$" correctly in conditional format rule formulas
B70: if you wish to paste the cell format to other cells.
A71: Data/What-If Analysis/Scenario Manager
D72: Car
C73: Loan Principal | D73: 33000
C74: Interest Rate (APR) | D74: 0.08
C75: Number of Monthly Payments | D75: 60
C76: Payment Amount | D76: =PMT(D74/12,D75,-D73) -> 669.1210115
A77: Protecting a Worksheet in a Workbook
B78: By default all cells on a sheet are "Locked". You can see this by
B79: selecting a cell range, right click, select "Format Cells" then the
B80: Protection tab. Checking the locked box for a cell willhave no impact
B81: until the worksheet is protected using the Review tab on the ribbon.
B82: Example:
B83: 1 | C83: The cells to the left are the only cell on this sheet which
B84: 2 | C84: were formatted with the "Locked" box unchecked using the
B85: 3 | C85: protection tab. To invoke the protection so that the only cells
B86: 4 | C86: able to be changed are the ones to the left, you must select
B87: 5 | C87: Review/Protect Sheet. Try it! Then undo the protection using
B88: 6 | C88: the Review tab.
B89: Remember, protecting the worksheet is a two step process. First, use
B90: format protection to lock or unlock cells. Second, use the Review tab
B91: on the ribbon to turn that protection on or off.
A93: Other Basic Excel Functions
B94: Apples: | C94: =SUM(J95:J96,J99) -> 280 | D94: =getformula(C94) -> <-- =SUM(J95:J96,J99) | H94: Fruit | I94: Year | J94: Units
B95: All but Pears | C95: =SUM(J95:J101) -> 1340 | D95: =getformula(C95) -> <-- =SUM(J95:J101) | H95: Apples | I95: 2018 | J95: 50
B96: All but Pears | C96: =SUMIF(J95:J102,"<400") -> 1340 | D96: =getformula(C96) -> <-- =SUMIF(J95:J102,"<400") | H96: Apples | I96: 2019 | J96: 100
B97: After 2019: | C97: =SUMIF(J95:J102,"<>50") -> 1690 | D97: =getformula(C97) -> <-- =SUMIF(J95:J102,"<>50") | H97: Oranges | I97: 2019 | J97: 200
B98: Pears: | C98: =SUMIFS(J95:J102,H95:H102,"PEARS") -> 400 | D98: =getformula(C98) -> <-- =SUMIFS(J95:J102,H95:H102,"PEARS") | H98: Peaches | I98: 2019 | J98: 300
B99: Apples 2018 & 2019 | C99: =SUMIFS(J95:J102,H95:H102,"Apples",I95:I102,"<2020") -> 150 | D99: =getformula(C99) -> <-- =SUMIFS(J95:J102,H95:H102,"Apples",I95:I102,"<2020") | H99: Apples | I99: 2020 | J99: 130
B100: Apples 2019: | C100: =SUMIFS(J95:J102,H95:H102,"Apples",I95:I102,2019) -> 100 | D100: =getformula(C100) -> <-- =SUMIFS(J95:J102,H95:H102,"Apples",I95:I102,2019) | H100: Oranges | I100: 2020 | J100: 230
B101: Nonsence!: | C101: =SUMPRODUCT(I95:I102,J95:J102) -> 3514100 | D101: =getformula(C101) -> <-- =SUMPRODUCT(I95:I102,J95:J102) | H101: Peaches | I101: 2020 | J101: 330
B102: =1/0 ->  | C102: =IFERROR(B102,"Error!") -> Error! | D102: =getformula(C102) -> <-- =IFERROR(B102,"Error!") | H102: Pears | I102: 2020 | J102: 400
B103: Average all: | C103: =AVERAGE(J95:J102) -> 217.5 | D103: =getformula(C103) -> <-- =AVERAGE(J95:J102)
B104: 2019 Average: | C104: =AVERAGEIF(I95:I102,"=2019",J95:J102) -> 200 | D104: =getformula(C104) -> <-- =AVERAGEIF(I95:I102,"=2019",J95:J102)
B105: Samallest | C105: =MIN(J95:J102) -> 50 | D105: =getformula(C105) -> <-- =MIN(J95:J102)
B106: Largest | C106: =MAX(J95:J102) -> 400 | D106: =getformula(C106) -> <-- =MAX(J95:J102)
B107: Number | C107: =COUNT(J95:J102) -> 8 | D107: =getformula(C107) -> <-- =COUNT(J95:J102)
